Cogmind - Beta 13 @@@ ROGUE MODE // 2024.05.29 @ 01:35:10 Player: Some Pennies Result: Destroyed by Y-45 Defender with Beam Rifle Performance ------------- Evolutions (0) 0 Regions Visited (4) 800 Robots Destroyed (33) 165 Value Destroyed (683) 683 Prototype IDs (3) 60 Alien Tech Used (0) 0 Bonus (0) 0 TOTAL SCORE: 1708 Bonus ------- None Cogmind --------- Core Integrity 0/250 Matter 260/300 Energy 125/125 System Corruption 0% Temperature Cool (57) Movement Core (300) Ox5 Location -9/Mines Parts ------- > --- POWER (1) -------- Light Ion Engine > --- PROPULSION (2) --- (None) > --- UTILITY (2) ------ Medium Storage Unit Seismic Detector > --- WEAPON (2) ------- Light Assault Rifle Light Cannon > --- INVENTORY (10) --- Light Nuclear Core Flight Unit Flight Unit Flight Unit Improved Heat Sink ECM Suite Light Assault Rifle Light Assault Rifle Rocket Launcher Mining Laser Peak State ------------ > --- POWER ------------ Light Ion Engine > --- PROPULSION ------- Flight Unit Flight Unit > --- UTILITY ---------- Small Storage Unit Seismic Detector > --- WEAPON ----------- Small Laser Assault Rifle > --- INVENTORY -------- Flight Unit Improved Terrain Scanner Seismic Detector ECM Suite Assault Rifle Light Cannon Grenade Launcher Mining Laser [Rating: 8] Favorites ----------- Power Light Ion Engine Engine Light Ion Engine Propulsion Flight Unit Flight Unit Flight Unit Utility Seismic Detector Device Seismic Detector Storage Medium Storage Unit Processor Signal Interpreter Weapon Light Assault Rifle Energy Gun Small Laser Ballistic Gun Light Assault Rifle Ballistic Cannon Light Cannon Special Weapon Mining Laser Build | -11 -10 -10 -10 -9 ------- Run | Yrd Mat Min Exi Min Slots Evolved . | . . . . . Power . | . . . . . Propulsion . | . . . . . Utility . | . . . . . Weapon . | . . . . . Parts Attached 31 | 2 16 11 . 2 Power 3 | . 2 1 . . Engine 3 | . 2 1 . . Core . | . . . . . Reactor . | . . . . . Propulsion 8 | . 4 4 . . Treads . | . . . . . Leg . | . . . . . Wheel . | . . . . . Hover . | . . . . . Flight 8 | . 4 4 . . Utility 6 | . 6 . . . Device 2 | . 2 . . . Storage 3 | . 3 . . . Processor 1 | . 1 . . . Hackware . | . . . . . Protection . | . . . . . Artifact . | . . . . . Weapon 14 | 2 4 6 . 2 Energy Gun 1 | 1 . . . . Energy Cannon . | . . . . . Ballistic Gun 11 | 1 4 5 . 1 Ballistic Cannon 1 | . . . . 1 Launcher . | . . . . . Special Weapon 1 | . . 1 . . Impact Weapon . | . . . . . Slashing Weapon . | . . . . . Piercing Weapon . | . . . . . Special Melee Weapon . | . . . . . Unidentified Prototypes . | . . . . . Parts Lost 7 | . 1 4 . 2 Power 1 | . . 1 . . Propulsion 6 | . 1 3 . 2 Utility . | . . . . . Weapon . | . . . . . Highest Loss Streak 3 | . 1 3 . 2 To Critical Strikes . | . . . . . Average Slot Usage (%) 96 | . 92 98 100 96 Engine 12 | . 10 13 14 14 Flight 26 | . 25 27 28 24 Device 13 | . 12 14 14 14 Storage 13 | . 13 14 14 14 Energy Gun 5 | . 14 1 . . Ballistic Gun 21 | . 12 25 28 26 Naked Turns . | . . . . . Heaviest Build 27 | 3 27 17 16 16 Greatest Support 8 | 3 8 8 8 8 Greatest Overweight (x) 3 | . 3 3 1 3 Average Overweight (x) 1 | . 1 1 1 1 Largest Inventory Capacity 15 | 5 15 10 10 10 Average Capacity 9 | 5 8 10 10 10 Most Carried 10 | 4 9 10 10 10 Average Carried 8 | 1 7 9 10 10 Final Capacity 10 | 5 10 10 10 10 Final Carried 10 | 4 9 10 10 10 Class Distribution -------------------- 61% | Mutant 38% | Scavenger-Mutant Dominant Class ---------------- Mutant | -10/Materials Scavenger-Mutant | -10/Mines Scavenger-Mutant | -10/Exiles Mutant | -9/Mines Resources | -11 -10 -10 -10 -9 ----------- Run | Yrd Mat Min Exi Min Matter Collected 706 | 154 347 185 . 20 Remotely . | . . . . . Salvage Created 1093 | 20 461 492 . 120 Parts 74 | 4 29 35 . 6 Haulers Intercepted 2 | . 2 . . . Recyclers Shooed 2 | . 2 . . . Parts Field Recycled . | . . . . . Retrieved Matter . | . . . . . Parts Self-Destructed . | . . . . . Prevented . | . . . . . Kills | -11 -10 -10 -10 -9 ------- Run | Yrd Mat Min Exi Min Combat Hostiles Destroyed 22 | . 8 11 . 3 Guns 22 | . 8 11 . 3 Classes Destroyed 10 | 1 6 2 . 1 Worker 2 | . . 2 . . Builder 2 | . 1 1 . . Tunneler 1 | 1 . . . . Hauler 2 | . 2 . . . Recycler 1 | . . 1 . . Operator 1 | . 1 . . . Watcher 2 | . 2 . . . Swarmer 8 | . 2 6 . . Grunt 13 | . 6 5 . 2 Sentry 1 | . . . . 1 Best Kill Streak 7 | 1 3 7 . 2 Combat Bots Only 3 | . 3 3 . 2 Max Kills in Single Turn 1 | 1 1 1 . 1 Gunslinging . | . . . . . Exploded . | . . . . . Melee . | . . . . . Uniques/NPCs Destroyed . | . . . . . Combat | -11 -10 -10 -10 -9 -------- Run | Yrd Mat Min Exi Min Hostile Shots Fired 104 | . 36 44 . 24 Missed 27 | . 11 10 . 6 Damage Taken 866 | . 278 346 . 242 Core 258 | . 77 77 . 104 Absorbed by Shields . | . . . . . Core Remaining (%) 100 | 100 . . . . Volleys Fired 111 | 4 42 49 . 16 Largest 2 | 2 2 2 . 2 Hottest 100 | 60 60 100 . 55 Shots Fired 208 | 8 80 88 . 32 Gun 192 | 8 80 78 . 26 Cannon 6 | . . . . 6 Launcher . | . . . . . Special 10 | . . 10 . . Kinetic 145 | 4 38 71 . 32 Thermal 63 | 4 42 17 . . Explosive . | . . . . . Electromagnetic . | . . . . . Robot Hit Streak 13 | 1 9 13 . 13 Robot Miss Streak 6 | 2 3 6 . 3 Penetration Max . | . . . . . Secondary Targets 2 | . . 1 . 1 Max Gunslinging Chain 1 | . . 1 . 1 Shots Hit Robots 127 | 3 50 51 . 23 Core Hits 66 | 1 29 25 . 11 Critical Kills . | . . . . . Critical Parts Destroyed . | . . . . . Critical Strikes . | . . . . . Melee Attacks . | . . . . . Impact . | . . . . . Slashing . | . . . . . Piercing . | . . . . . Sneak Attacks . | . . . . . Combat Hostiles . | . . . . . Follow-up Attacks . | . . . . . Damage Inflicted 1325 | 36 593 452 . 244 Guns 1220 | 36 593 452 . 139 Cannons 105 | . . . . 105 Explosions . | . . . . . Melee . | . . . . . Ramming . | . . . . . Kinetic 914 | 14 270 386 . 244 Thermal 411 | 22 323 66 . . Explosive . | . . . . . Electromagnetic . | . . . . . Impact . | . . . . . Slashing . | . . . . . Piercing . | . . . . . Highest Corruption . | . . . . . Average Corruption . | . . . . . Corruption Purged . | . . . . . Corruption Blocked . | . . . . . Overload Shots . | . . . . . Overflow Damage . | . . . . . Projectiles . | . . . . . Explosions . | . . . . . Melee . | . . . . . Knockbacks . | . . . . . Impact . | . . . . . Kinetic . | . . . . . Secondary . | . . . . . Self-Inflicted Damage . | . . . . . Shots . | . . . . . Rammed . | . . . . . Targets Rammed . | . . . . . Kicked . | . . . . . Crushed . | . . . . . Highest Temperature 134 | . 104 134 . 61 Average Temperature 30 | . 33 32 . 17 Received Heat Transfer 330 | . 138 114 . 78 Siege Activations . | . . . . . Robots Corrupted . | . . . . . Combat Hostiles . | . . . . . Parts Fried . | . . . . . Impact Corruptions . | . . . . . Robots Melted . | . . . . . Combat Hostiles . | . . . . . Parts Melted 1 | . 1 . . . Heat Transferred 950 | 50 750 150 . . Parts Sabotaged . | . . . . . Parts Stolen . | . . . . . Parts Stripped . | . . . . . Power Chain Reactions . | . . . . . Alert | -11 -10 -10 -10 -9 ------- Run | Yrd Mat Min Exi Min Peak Influence 194 | 5 194 142 . 65 Initial 3 | . 3 . . . Average 62 | 1 96 41 . 35 Maximum Alert Level . | . . . . . Low Security (%) 100 | 100 100 100 . 100 Level 1 . | . . . . . Level 2 . | . . . . . Level 3 . | . . . . . Level 4 . | . . . . . Level 5 . | . . . . . High Security . | . . . . . Max Security . | . . . . . Squads Dispatched 1 | . 1 . . . Investigation 1 | . 1 . . . Extermination . | . . . . . Reinforcement . | . . . . . Assault . | . . . . . Garrison . | . . . . . Intercept . | . . . . . Searches Triggered . | . . . . . Construction Impeded . | . . . . . Haulers Reinforced . | . . . . . Active Scanning Responses . | . . . . . Cargo Convoy Interrupts . | . . . . . Stealth | -11 -10 -10 -10 -9 --------- Run | Yrd Mat Min Exi Min Distress Signals 2 | . 2 . . . Communications Jammed . | . . . . . Distress Signals . | . . . . . Times Spotted 31 | . 15 11 . 5 Peak Tracking Total 4 | . 4 3 . 3 Tactical Retreats 1 | . 1 . . . Traps | -11 -10 -10 -10 -9 ------- Run | Yrd Mat Min Exi Min Traps Triggered 1 | . 1 . . . Indirectly . | . . . . . Trap Hack Attempts . | . . . . . Triggered . | . . . . . Disarmed . | . . . . . Reprogrammed . | . . . . . Reused . | . . . . . Traps Extracted . | . . . . . Installed . | . . . . . Triggered . | . . . . . Machines | -11 -10 -10 -10 -9 ---------- Run | Yrd Mat Min Exi Min Machines Disabled . | . . . . . Max in Single Turn . | . . . . . Machines Repaired . | . . . . . Machines Dismantled . | . . . . . Machines Sabotaged . | . . . . . Overloaded Fab Kills . | . . . . . Hacking | -11 -10 -10 -10 -9 --------- Run | Yrd Mat Min Exi Min Machines Accessed 5 | . 4 . 1 . Terminals 4 | . 4 . . . Fabricators . | . . . . . Repair Stations . | . . . . . Recycling Units . | . . . . . Scanalyzers . | . . . . . Garrison Access . | . . . . . Total Hacks 14 | . 13 . 1 . Successful 8 | . 7 . 1 . Failed 6 | . 6 . . . Catastrophic . | . . . . . Database Lockouts . | . . . . . Manual 5 | . 5 . . . Terminals 13 | . 13 . . . Fabricators . | . . . . . Repair Stations . | . . . . . Recycling Units . | . . . . . Scanalyzers . | . . . . . Garrison Access . | . . . . . Terminal Hacks 8 | . 7 . 1 . Record 1 | . . . 1 . Robot Analysis 2 | . 2 . . . Prototype ID Bank 2 | . 2 . . . Locate Traps 1 | . 1 . . . Hauler Manifests 1 | . 1 . . . Zone Layout 1 | . 1 . . . Fabricator Hacks . | . . . . . Repair Station Hacks . | . . . . . Recycling Unit Hacks . | . . . . . Scanalyzer . | . . . . . Garrison Access Hacks . | . . . . . Unauthorized Hacks . | . . . . . Terminals . | . . . . . Fabricators . | . . . . . Repair Stations . | . . . . . Recycling Units . | . . . . . Scanalyzers . | . . . . . Garrison Access . | . . . . . Data Cores Recovered . | . . . . . Used . | . . . . . Hacking Detections 4 | . 4 . . . Full Trace Events 1 | . 1 . . . Feedback Events . | . . . . . Feedback Blocked . | . . . . . Robot Schematics Acquired . | . . . . . Robots Built . | . . . . . Authchips . | . . . . . Time . | . . . . . Total Robot Build Rating . | . . . . . Part Schematics Acquired . | . . . . . Parts Built . | . . . . . Authchips . | . . . . . Time . | . . . . . Total Part Build Rating . | . . . . . Parts Repaired . | . . . . . Time . | . . . . . Parts Recycled . | . . . . . Recycled Matter . | . . . . . Retrieved Matter . | . . . . . Retrieved Components . | . . . . . Parts Scanalyzed . | . . . . . Part Schematics Acquired . | . . . . . Parts Damaged . | . . . . . Bothacking | -11 -10 -10 -10 -9 ------------ Run | Yrd Mat Min Exi Min Used RIF Installer . | . . . . . Robots Hacked . | . . . . . Non-combat . | . . . . . Combat . | . . . . . Robot Hacks Applied . | . . . . . Relay Couplers Released . | . . . . . Fabnet Peak Effective % . | . . . . . Robots Rewired . | . . . . . Allies Hacked . | . . . . . Hacks Repelled . | . . . . . Allies | -11 -10 -10 -10 -9 -------- Run | Yrd Mat Min Exi Min Total Allies . | . . . . . Largest Group . | . . . . . Highest-Rated Group . | . . . . . Highest-Rated Ally . | . . . . . Total Orders . | . . . . . Ally Attacks . | . . . . . Total Damage . | . . . . . Kills . | . . . . . Allies Corrupted . | . . . . . Allies Melted . | . . . . . Intel | -11 -10 -10 -10 -9 ------- Run | Yrd Mat Min Exi Min Robot Analysis Total 2 | . 2 . . . Derelict Logs Recovered 2 | . . 2 . . Drone Launches . | . . . . . Drone Recoveries . | . . . . . Exploration | -11 -10 -10 -10 -9 ------------- Run | Yrd Mat Min Exi Min Turns Passed 2239 | 42 806 1011 234 146 Spaces Moved 1533 | 44 531 675 201 82 Core 89 | 44 45 . . . Treads . | . . . . . Legs . | . . . . . Wheels . | . . . . . Hover . | . . . . . Flight 1444 | . 486 675 201 82 Fastest Speed 37 | 50 37 117 117 117 Average Speed 118 | 50 120 122 117 118 Slowest Speed 280 | 50 277 280 117 280 Overloaded Moves . | . . . . . Propulsion Burnouts . | . . . . . Robots Hopped 1 | . 1 . . . Cave-ins Triggered . | . . . . . Exploration Rate (%) 57 | 3 91 97 57 38 Regions Visited 4 Branch Regions 3 Pre-discovered Areas 1 | . . . 1 . Known Exits Taken . | . . . . . Unknown Exits Taken 4 | 1 1 1 1 . Scrap Searched 2 | . . 1 . 1 Spaces Dug . | . . . . . Terrain Destroyed 3 | . . 3 . . Melee . | . . . . . Projectile 3 | . . 3 . . AOE . | . . . . . Terrain Rammed . | . . . . . Walls Destroyed . | . . . . . Machines Disabled . | . . . . . Actions | -11 -10 -10 -10 -9 --------- Run | Yrd Mat Min Exi Min Total 1746 | 55 623 763 200 105 Wait 29 | . 7 18 . 4 Move 1527 | 43 528 674 200 82 Hop 1 | . 1 . . . Pick Up 28 | 6 17 5 . . Fast Attach 5 | . 1 4 . . Attach 13 | 2 9 2 . . Detach 4 | . 4 . . . Swap 13 | . 6 5 . 2 Drop 15 | . 8 6 . 1 Fire 111 | 4 42 49 . 16 Melee . | . . . . . Ram . | . . . . . Kick . | . . . . . Crush . | . . . . . Escape Stasis . | . . . . . Rewire . | . . . . . Trap . | . . . . . Miscellaneous . | . . . . . Route ------- -11/Scrapyard -10/Materials (discovered 4 exits: [*Mat x3] / [*Min]) -10/Mines (discovered 3 exits: [*Mat x2] / *Exi) -10/Exiles -9/Mines History --------- Turn | Location | Event 7 | -11/Scrapyard | Discovered new exit (range 15) 43 | -11/Scrapyard | Entered Materials 227 | -10/Materials | Discovered new exit (range 7) 307 | -10/Materials | Discovered new exit (range 15) 325 | -10/Materials | Build established: Mutant 528 | -10/Materials | Discovered new exit (range 9) 716 | -10/Materials | Discovered new exit (range 12) 849 | -10/Materials | Entered Mines 953 | -10/Mines | Discovered new exit (range 7) 1024 | -10/Mines | Learned Materials interactive machine intel 1025 | -10/Mines | Learned location of 1 exit from Materials 1141 | -10/Mines | Excavation squad dispatched 1141 | -10/Mines | A large section of the Mines collapsed 1363 | -10/Mines | Received a Rocket Launcher from a helpful Derelict 1383 | -10/Mines | Discovered new exit (range 9) 1540 | -10/Mines | Core integrity fell below 50% 1584 | -10/Mines | Lost 3 parts (1p2n) 1855 | -10/Mines | Deemed a non-threat by the Exiles lab entrance 1856 | -10/Mines | Discovered new exit (range 5) 1860 | -10/Mines | Entered Exiles 1875 | -10/Exiles | Build established: Scavenger-Mutant 1892 | -10/Exiles | Met 8R-AWN 1908 | -10/Exiles | Met EX-HEX 1955 | -10/Exiles | Met EX-DEC 1961 | -10/Exiles | Learned location of Zion (-7) 2082 | -10/Exiles | Discovered new exit (range 12) 2094 | -10/Exiles | Entered Mines 2230 | -9/Mines | Core integrity fell below 20% 2240 | -9/Mines | Destroyed by Y-45 Defender with Beam Rifle Last Messages --------------- Mercenary. 02121_ G-34 Mercenary destroyed. 02124_ Acquired 20 matter. 02150_ Searching scrap... 02150_ Found Lgt. Assault Rifle. 02150_ Found Med. Matter Pod. 02150_ Found Hrd. Light Armor Plating. 02150_ Found Seismic Detector. 02150_ Found 24 Matter. 02152_ Dropped Lgt. Assault Rifle. 02186_ K-01 Serf collects debris. 02206_ T-07 Excavator is excavating. 02208_ K-01 Serf collects debris. 02210_ T-07 Excavator is excavating. 02213_ K-01 Serf collects debris. 02214_ T-07 Excavator is excavating. 02216_ Flight Unit destroyed. 02229_ K-01 Serf collects debris. 02233_ Y-45 Defender destroyed. 02237_ Flight Unit destroyed. Map ----- +----------------------------------------------------+ | ??????????????????????????????????????# #???? | | ??????????????????????????????????????###### #???? | | ???????????????????????????????????????????# #???? | | ???????????????????????????????????????????# #???? | | ???????????????????????????????????????????# #???? | | ???????????????????????????????????????????# ####? | | ??????????????????????????????????????????## #? | | ??????????????????????????????????????????# #? | | ??????????????????????????????????????????# ##? | | ?????????????????????????????????????????## ##? | | ???????????????????????????????????????### ## | | ??????????????????????????????????????## | | ??????????????????????????????????????# | | ?????????????????????????????????????## | | ????????????????????????????????###### ### | | ???????????????????????????????## ##??# | | ???????????????????????????????# ##???? | | ??????????????????????????????## ##????? | | ?????????????????????????????## #?????? | | ???????????????????????????### ##?????? | | ????????????????????###?#### k ##?????? | | ???????????????????##[]## #?????? | | ???????????????????#"[] # ### #????? | | ???????????????????# %[Y=% ##?## ?? | | ???????????????????# [/% ##### ? | | ???????????????????#"!] #@ ? | | ???????????????????##[!## #### ######? | | ????????????????????###?# #??? #?????? | | ????????????????????????# #??? #?????? | | ???????????????????????# #?????? | | ??????????????????????# ####### ??????? | | ????????????????????? ### ##??????????????? | | ????????????????????# ####?## ##???????????????? | | ????????????????????# ??????####????????????????? | | ????????????????????##???????????????????????????? | | ?????????????????????????????????????????????????? | | ?????????????????????????????????????????????????? | | ?????????????????????????????????????????????????? | | ?????????????????????????????????????????????????? | | ?????????????????????????????????????????????????? | | ?????????????????????????????????????????????????? | | ?????????????????????????????????????????????????? | | | | | | | | | | | | | | | | | +----------------------------------------------------+ Best States ------------- Heat Dissipation 25 Energy Generation 10 Energy Capacity 125 Matter Stores 300 Matter Capacity 300 Sight Range 16 Terrain Scan Density 10 Evasion (%) 62 Item Schematics ----------------- None Robot Schematics ------------------ None Fabricated ------------ Nothing Alien Tech Used ----------------- None Achievements -------------- None Challenges ------------ None Game ------ Seed StructuralNavigationMantle Manual? 0 Play Time 00:20:08 Cumulative 105.0 hours Start 2024.05.29 @ 00:29:38 End 2024.05.29 @ 01:35:10 Sessions 1 Manual Loads 0 Difficulty Rogue Special Mode None Game No. 97 Rogue 92 Adventurer 5 Explorer 0 Win Type - Total 1 Types 1/0/0/0/0/0/0/0/0 Lore% 46 Gallery% 58 Achievement% 43 Wizard Run 0 Options --------- Layout 2 ASCII 0 Keyboard 0 Movement Mouse Keybinds 0 Fullscreen 2 Font 24/Smallcaps Map View 50x44 Zoom Use 0% Tactical HUD 1 Map Filters NONE Filters NONE Steam 1 RUN: 2185e7af-114f-4393-a182-50a75bff148e